bitfinex-derivatives/quotes_ETHF0:USTF0_20210401
["timestamp","ask_amount","ask_price","bid_price","bid_amount"]
[1617261415318,17.13111874,1920.6,1920.5,14.2828]
[1617261415516,14.22416874,1920.6,1920.5,14.2828]
[1617261415717,13.12416874,1920.6,1920.5,44.2828]
[1617261415918,3.01158871,1920.6,1920.5,44.2828]
[1617261416316,3.01200019,1920.7,1920.6,85.2247]
[1617261416717,2.110366,1920.7,1920.6,115.2247]
[1617261416917,2.11075129,1920.8,1920.6,115.2247]
[1617261417519,2.11075129,1920.8,1920.7,2.90695]
[1617261417717,2.11075129,1920.8,1920.7,32.90695]
[1617261418018,4.69379754,1920.9,1920.7,32.90695]
[1617261418617,4.69379754,1920.9,1920.7,2.90695]
[1617261419120,2.10917036,1920.8,1920.7,2.90695]
[1617261419720,2.10917036,1920.8,1920.7,32.90695]
[1617261420221,4.69367783,1920.9,1920.7,32.90695]
[1617261420620,1.20383919,1920.8,1920.7,32.90695]
[1617261421324,1.20383919,1920.8,1920.7,18.90695]
[1617261421522,1.20383919,1920.8,1920.7,21.8139]
[1617261421720,3.78808829,1920.9,1920.7,21.8139]
[1617261421922,1.20408829,1920.9,1920.7,21.8139]
[1617261422421,1.20399949,1920.8,1920.7,21.8139]
[1617261423125,1.20340478,1920.9,1920.7,21.8139]
[1617261424024,1.20340478,1920.9,1920.7,2.90695]
[1617261425424,0.96281877,1920.8,1920.7,2.90695]
[1617261426226,1.20340478,1920.9,1920.7,2.90695]
[1617261426424,1.20340478,1920.9,1920.8,78.787]
[1617261427325,5.01591688,1921.1,1920.8,78.787]
[1617261427326,1.2033215,1921.0,1920.8,78.787]
[1617261427526,1.2033215,1921.0,1920.9,2.90695]
[1617261427727,5.01591688,1921.1,1920.9,2.90695]
[1617261428126,1.20371921,1921.0,1920.9,2.90695]
[1617261430528,1.20371921,1921.0,1920.9,87.32335]
[1617261431730,1.20371921,1921.0,1920.9,117.32335]
[1617261432331,1.20383237,1921.1,1920.9,117.32335]
[1617261432731,1.20387949,1921.0,1920.9,117.32335]
[1617261433033,1.20389772,1921.1,1920.9,117.32335]
[1617261433732,1.20389772,1921.1,1920.9,32.90695]
[1617261438839,0.96354371,1921.0,1920.9,32.90695]
[1617261440242,1.20389772,1921.1,1920.9,32.90695]
[1617261440441,1.20338316,1921.2,1921.0,79.0006]
[1617261441743,1.20338316,1921.2,1921.1,32.90695]
[1617261442642,2.90695,1921.3,1921.1,32.90695]
[1617261443042,2.90695,1921.3,1921.2,14.8444]
[1617261443245,4.11047657,1921.3,1921.2,15.9703]
[1617261443542,2.90695,1921.3,1921.2,15.9703]
[1617261443743,2.90695,1921.3,1921.2,45.9703]
[1617261443942,4.11112108,1921.3,1921.2,45.9703]
[1617261445543,1.20417108,1921.3,1921.2,45.9703]
[1617261446345,3.78823905,1921.4,1921.2,45.9703]
[1617261447047,0.96368185,1921.3,1921.2,45.9703]
[1617261451753,3.54717471,1921.4,1921.2,45.9703]
[1617261453654,3.54717471,1921.4,1921.3,1.99110594]
[1617261453855,0.96317471,1921.4,1921.3,1.99110594]
[1617261454055,0.72192494,1921.4,1921.3,1.99110594]
[1617261454455,0.96256658,1921.5,1921.3,1.99110594]
[1617261455458,2.90695,1921.6,1921.3,1.99110594]
[1617261455857,2.90695,1921.6,1921.5,2.90695]
[1617261456357,2.90695,1921.6,1921.5,32.90695]
[1617261456557,3.86930875,1921.6,1921.5,34.37755]
[1617261457359,2.90695,1921.6,1921.5,4.37755]
[1617261458258,2.90695,1921.6,1921.5,34.37755]
[1617261459460,1.20320823,1921.7,1921.5,34.37755]
[1617261460462,1.20320823,1921.7,1921.5,4.37755]
[1617261460663,1.20320823,1921.7,1921.5,64.19905]
[1617261460863,1.20305482,1921.7,1921.5,64.19905]
[1617261461464,1.20225145,1921.8,1921.5,64.19905]
[1617261461762,1.20225145,1921.8,1921.7,2.90695]
[1617261462166,5.3302603,1921.9,1921.7,2.90695]
[1617261463166,0.96170242,1921.8,1921.7,2.90695]
[1617261463770,4.1092509,1921.9,1921.7,2.90695]
[1617261464169,4.1092509,1921.9,1921.7,75.55245]
[1617261466373,3.8689029,1921.9,1921.7,75.55245]
[1617261466773,0.96194366,1921.8,1921.7,75.55245]
[1617261470076,0.96194366,1921.8,1921.7,2.90695]
[1617261470278,3.86907839,1921.9,1921.7,2.90695]
[1617261470677,3.86907839,1921.9,1921.7,4.02125]
[1617261470880,2.90695,1921.9,1921.7,4.02125]
[1617261471081,3.86916547,1921.9,1921.7,4.02125]
[1617261472482,0.9628875,1921.8,1921.7,4.02125]
[1617261475085,0.9628875,1921.8,1921.7,2.90695]
[1617261475483,0.9628875,1921.8,1921.7,86.44775]
[1617261478084,4.11076988,1921.9,1921.7,86.44775]
[1617261483899,5.02090085,1921.9,1921.7,86.44775]
[1617261484299,2.11481633,1921.8,1921.7,86.44775]
[1617261485100,5.02252634,1921.9,1921.7,86.44775]
[1617261492812,2.11557634,1921.9,1921.7,2.90695]
[1617261493410,12.0,1921.8,1921.7,2.90695]
[1617261494410,13.5035,1921.8,1921.7,2.90695]
[1617261494611,13.5035,1921.8,1921.5,75.9529]
[1617261495013,1.20337866,1921.6,1921.5,75.9529]
[1617261495914,4.11032866,1921.6,1921.5,75.9529]
[1617261496217,7.13530875,1921.6,1921.5,75.9529]
[1617261500718,2.90695,1921.6,1921.5,75.9529]
[1617261501519,8.33974871,1921.6,1921.5,75.9529]
[1617261501918,2.90695,1921.6,1921.5,75.9529]
[1617261508028,9.55058028,1921.6,1921.5,75.9529]
[1617261511729,9.55058028,1921.6,1921.2,14.8444]
[1617261512129,2.90695,1921.3,1921.2,14.8444]
[1617261513931,8.3396501,1921.3,1921.2,14.8444]
[1617261517331,2.90695,1921.3,1921.2,14.8444]
[1617261517932,4.12816611,1921.3,1921.2,14.8444]
[1617261518332,2.90695,1921.3,1921.2,14.8444]
[1617261518933,8.33913137,1921.3,1921.2,14.8444]
[1617261519333,8.33913137,1921.3,1921.2,90.3165]
[1617261522941,2.90695,1921.3,1921.2,90.3165]
[1617261523339,9.54054678,1921.3,1921.2,90.3165]
[1617261523742,2.90695,1921.3,1921.2,87.2248]
[1617261523939,6.6323744,1921.4,1921.2,87.2248]
[1617261524340,2.90695,1921.3,1921.2,87.2248]
[1617261524740,3.82293676,1921.3,1921.2,87.2248]
[1617261525841,9.24008943,1921.3,1921.2,87.2248]
[1617261529646,3.82293676,1921.3,1921.2,87.2248]
[1617261532149,9.24254043,1921.3,1921.2,87.2248]
[1617261538261,3.82293676,1921.3,1921.2,87.2248]
[1617261539468,8.03645384,1921.3,1921.2,87.2248]
[1617261542868,8.03645384,1921.3,1921.2,11.7527]
[1617261544470,8.03645384,1921.3,1921.2,14.65965]
[1617261547774,8.03645384,1921.3,1921.2,11.7527]
[1617261552685,3.82293676,1921.3,1921.2,11.7527]
[1617261553084,8.0406739,1921.3,1921.2,11.7527]
[1617261555191,3.82293676,1921.3,1921.2,11.7527]
[1617261555490,16.91710218,1921.3,1921.2,11.7527]
[1617261556290,3.82293676,1921.3,1921.2,11.7527]
[1617261559295,8.03864158,1921.3,1921.2,11.7527]
[1617261563898,3.82293676,1921.3,1921.2,11.7527]
[1617261565098,0.91598676,1921.3,1921.2,11.7527]
[1617261565299,3.93213756,1921.3,1921.2,41.7527]
[1617261565699,0.91598676,1921.3,1921.2,41.7527]
[1617261566099,2.11318115,1921.3,1921.2,41.7527]
[1617261566399,3.02895444,1921.3,1921.2,41.7527]
[1617261566800,2.11318115,1921.3,1921.2,41.7527]
[1617261567201,2.11325414,1921.4,1921.2,41.7527]
[1617261567601,0.91574661,1921.3,1921.2,41.7527]
[1617261567901,2.11325414,1921.4,1921.2,41.7527]
[1617261568904,2.11325414,1921.4,1921.3,2.90695]
[1617261569105,2.11325414,1921.4,1921.3,32.90695]
[1617261569305,2.11325414,1921.4,1921.3,34.14025]
[1617261570405,2.11095938,1921.5,1921.4,64.5734]
[1617261575714,2.11095938,1921.5,1921.4,94.5734]
[1617261581518,2.10991786,1921.6,1921.4,94.5734]
[1617261583021,2.10991786,1921.6,1921.5,2.90695]
[1617261583221,2.10991786,1921.6,1921.5,32.90695]
[1617261585421,2.11050288,1921.7,1921.6,83.1054]
[1617261586526,2.11050288,1921.7,1921.5,32.90695]
[1617261587727,0.96433155,1921.7,1921.5,32.90695]
[1617261587925,12.0,1921.8,1921.7,86.8424]
[1617261588126,12.0,1921.8,1921.7,118.3433]
[1617261588325,12.0,1921.8,1921.7,31.5009]
[1617261588725,9.8205,1921.8,1921.7,33.5009]
[1617261588927,10.30324542,1921.8,1921.7,33.5009]
[1617261589128,0.72411814,1922.0,1921.9,30.0]
[1617261589328,0.72424993,1922.1,1921.9,32.0]
[1617261589627,0.29014188,1922.6,1921.9,32.0]
[1617261589827,5.22780896,1923.0,1921.9,32.0]
[1617261589828,3.02256061,1922.9,1921.9,32.0]
[1617261590428,3.02256061,1922.9,1921.9,30.0]
[1617261590628,3.02256061,1922.9,1922.5,77.7469]
[1617261590828,3.02256061,1922.9,1922.2,1.5988]
[1617261591228,3.02256061,1922.9,1922.8,2.90695]
[1617261592329,5.23513769,1923.0,1922.9,62.5517]
[1617261593732,1.0,1923.0,1922.9,62.5517]
[1617261595235,3.90695,1923.0,1922.9,62.5517]
[1617261595436,3.90695,1923.0,1922.8,2.90695]
[1617261597237,3.90695,1923.0,1922.6,2.90695]
[1617261597838,71.60545,1923.0,1922.5,67.6985]
[1617261598442,3.01056193,1922.8,1922.5,67.6985]
[1617261598841,3.00992245,1922.7,1922.5,67.6985]
[1617261599042,4.62932245,1922.7,1922.5,67.6985]
[1617261599242,2.90695,1922.6,1921.8,2.90695]
[1617261599444,68.4979,1922.5,1921.8,71.40485]
[1617261599842,2.10680281,1922.3,1921.8,71.40485]
[1617261600044,3.57270281,1922.3,1921.8,71.40485]
[1617261601143,2.90695,1921.9,1921.8,71.40485]
[1617261607852,8.20975406,1922.4,1921.8,71.40485]
[1617261608051,8.20975406,1922.4,1921.8,72.84115]
[1617261608951,6.10391256,1922.4,1921.8,72.84115]
[1617261609351,6.10391256,1922.4,1922.0,2.90695]
[1617261610052,1.20240652,1922.3,1922.0,2.90695]
[1617261611353,2.90695,1922.1,1922.0,2.90695]
[1617261618468,3.8695963,1922.1,1922.0,2.90695]
[1617261619365,2.90695,1922.1,1922.0,2.90695]
[1617261623868,2.90695,1922.1,1922.0,90.01515]
[1617261624168,0.96264436,1922.2,1922.0,90.01515]
[1617261625269,0.96378092,1922.3,1922.0,90.01515]
[1617261625570,0.91548182,1922.1,1922.0,87.1082]
[1617261625970,1.87925559,1922.3,1922.0,87.1082]
[1617261626573,1.87925559,1922.3,1921.8,1.6006]
[1617261626975,0.15063016,1921.9,1921.8,1.6006]
[1617261627377,0.06026281,1921.9,1921.8,1.6006]
[1617261627574,0.06026281,1921.9,1921.8,34.50755]
[1617261628374,0.21100106,1921.9,1921.8,34.50755]
[1617261628776,0.06026281,1921.9,1921.8,34.50755]
[1617261638181,0.15082079,1921.9,1921.8,34.50755]
[1617261641683,2.079e-05,1921.9,1921.8,34.50755]
[1617261641885,0.06034789,1921.9,1921.8,34.50755]
[1617261642284,2.584,1922.7,1921.8,34.50755]
[1617261642487,1.20699147,1922.8,1921.8,34.50755]
[1617261642685,2.42760485,1922.9,1922.8,70.6174]
[1617261642885,62.5811,1923.0,1922.8,101.8593]
[1617261643284,62.5811,1923.0,1922.9,44.5947]
[1617261643887,62.5811,1923.0,1922.9,47.50165]
[1617261644286,28.6711,1923.0,1922.9,47.50165]
[1617261644685,1.0,1923.0,1922.9,47.50165]
[1617261644885,2.584,1923.5,1922.9,47.50165]
[1617261645888,2.584,1923.5,1923.4,2.90695]
[1617261646087,2.584,1923.5,1923.4,3.96505]
[1617261649194,4.70598169,1923.5,1923.4,3.96505]
[1617261649388,4.70598169,1923.5,1923.4,2.90695]
[1617261650289,2.584,1923.5,1923.4,2.90695]
[1617261650690,2.584,1923.5,1923.4,77.11095]
[1617261652693,2.584,1923.5,1923.4,78.67695]
[1617261653394,2.584,1923.5,1923.4,4.47295]
[1617261654997,3.79315749,1923.5,1923.4,4.47295]
[1617261657302,3.79315749,1923.5,1923.4,72.94105]
[1617261657500,3.79315749,1923.5,1923.4,71.37505]
[1617261657701,3.79315749,1923.5,1923.4,72.86405]
[1617261657901,2.584,1923.5,1923.4,72.86405]
[1617261658100,2.584,1923.5,1923.4,4.39595]
[1617261659602,3.79309407,1923.5,1923.4,4.39595]
[1617261660102,2.584,1923.5,1923.4,4.39595]
[1617261660302,2.584,1923.5,1923.4,2.90695]
[1617261660504,3.79371334,1923.5,1923.4,2.90695]
[1617261661105,3.79371334,1923.5,1923.4,3.92065]
[1617261662508,3.79371334,1923.5,1923.4,2.90695]
[1617261662706,3.79371334,1923.5,1922.9,87.5718]
[1617261662907,72.9958,1923.2,1922.9,87.5718]
[1617261663307,2.33518802,1923.0,1922.9,87.5718]
[1617261663709,1.1267,1923.0,1922.9,87.5718]
[1617261663906,3.24384523,1923.0,1922.9,14.5947]
[1617261664108,6.15079523,1923.0,1922.9,14.5947]
[1617261664309,4.03365,1923.0,1922.9,14.5947]
[1617261664706,13.15703209,1923.0,1922.9,14.5947]
[1617261664906,39.48238773,1923.0,1922.9,14.5947]
[1617261665306,44.36385408,1923.0,1922.9,14.5947]
[1617261665507,44.36385408,1923.0,1922.0,77.7583]
[1617261665708,62.7228,1922.9,1922.0,77.7583]
[1617261666108,1.2071338,1922.4,1922.1,2.90695]
[1617261666311,2.3136338,1922.4,1922.1,2.90695]
[1617261666510,1.2075115,1922.3,1922.1,2.90695]
[1617261668014,2.90695,1922.2,1922.0,77.7583]
[1617261668615,1.20799959,1922.4,1922.0,77.7583]
[1617261670216,1.20799959,1922.4,1922.1,2.90695]
[1617261671519,1.20969834,1922.2,1922.1,2.90695]
[1617261672217,4.11664834,1922.2,1922.1,2.90695]
[1617261674318,1.20969834,1922.2,1922.1,2.90695]
[1617261674621,1.21025614,1922.3,1922.1,2.90695]
[1617261677425,1.21169244,1922.2,1922.1,2.90695]
[1617261678830,2.12689031,1922.2,1922.1,2.90695]
[1617261682734,1.21169244,1922.2,1922.1,2.90695]
[1617261683534,1.21240427,1922.3,1922.1,2.90695]
[1617261683933,0.91516869,1922.2,1922.1,2.90695]
[1617261684133,1.21240427,1922.3,1922.1,2.90695]
[1617261684937,1.21240427,1922.3,1922.1,4.21005]
[1617261685336,0.97010631,1922.2,1922.1,4.21005]
[1617261685938,0.91510902,1922.2,1922.1,4.21005]
[1617261686336,0.72784735,1922.2,1922.1,4.21005]
[1617261686739,1.64289545,1922.2,1922.1,4.21005]
[1617261686939,0.91509545,1922.2,1922.1,34.21005]
[1617261687139,0.62439545,1922.2,1922.1,34.21005]
[1617261687339,0.26529545,1922.2,1922.1,34.21005]
[1617261687542,3.03604375,1923.0,1922.1,34.21005]
[1617261687543,0.97054497,1922.5,1922.1,34.21005]
[1617261687740,10.67995,1923.2,1922.1,34.21005]
[1617261687741,0.97047194,1922.6,1922.1,34.21005]
[1617261687942,0.97047194,1922.6,1922.5,82.6817]
[1617261688141,0.97045966,1922.7,1922.5,84.0584]
[1617261688342,0.97045966,1922.7,1922.6,2.90695]
[1617261688542,1.21310876,1922.8,1922.6,2.90695]
[1617261689548,1.21310876,1922.8,1922.6,32.90695]
[1617261689948,0.97045854,1922.7,1922.6,32.90695]
[1617261690748,0.97014764,1922.8,1922.6,32.90695]
[1617261693151,0.97007631,1922.9,1922.6,32.90695]
[1617261693950,0.9700202,1923.0,1922.6,32.90695]
[1617261694151,0.9700202,1923.0,1922.6,2.90695]
[1617261694350,64.9186,1922.9,1922.4,64.9186]
[1617261694750,0.9698532,1922.8,1922.4,64.9186]
[1617261695151,0.9692199,1922.7,1922.4,64.9186]
[1617261695550,0.9692199,1922.7,1922.5,14.5938]
[1617261696152,3.1038742,1922.8,1922.5,14.5938]
[1617261696552,1.21986333,1922.8,1922.7,2.90695]
[1617261696952,0.96913532,1922.8,1922.7,32.90695]
[1617261697555,0.96962616,1923.0,1922.7,32.90695]
[1617261697957,1.88442903,1923.1,1923.0,111.7784]
[1617261698155,1.88442903,1923.1,1923.0,112.9287]
[1617261698555,1.88442903,1923.1,1923.0,115.83565]
[1617261698754,1.88442903,1923.1,1923.0,34.05725]
[1617261698955,0.91480354,1923.1,1923.0,34.05725]
[1617261700557,0.91480354,1923.1,1923.0,32.90695]
[1617261702456,0.96899256,1923.3,1923.0,32.90695]
[1617261704462,0.96899256,1923.3,1923.2,2.90695]
[1617261705260,0.96899256,1923.3,1923.2,32.90695]
[1617261707264,0.91464966,1923.4,1923.2,32.90695]
[1617261708763,15.0,1923.5,1923.2,32.90695]
[1617261709363,0.4843735,1923.3,1923.2,32.90695]
[1617261710163,15.0,1923.5,1923.2,32.90695]
[1617261710563,15.0,1923.5,1923.4,2.90695]
[1617261710764,15.0,1923.5,1923.4,34.34825]
[1617261717971,13.8197,1923.5,1923.4,34.34825]
[1617261720075,12.7818,1923.5,1923.4,34.34825]
[1617261720276,12.261,1923.5,1923.4,34.34825]
[1617261720676,11.5671,1923.5,1923.4,34.34825]
[1617261721978,10.5231,1923.5,1923.4,34.34825]
[1617261722778,10.2782,1923.5,1923.4,34.34825]
[1617261724179,10.1252,1923.5,1923.4,34.34825]
[1617261724379,8.5075,1923.5,1923.4,34.34825]
[1617261725382,8.5075,1923.5,1923.4,97.38315]
[1617261725383,8.4273,1923.5,1923.4,97.38315]
[1617261725580,8.4273,1923.5,1923.4,95.94185]
[1617261727883,8.4273,1923.5,1923.4,32.90695]
[1617261728882,7.9273,1923.5,1923.4,34.24865]
[1617261729283,5.0949,1923.5,1923.4,34.24865]
[1617261729483,4.2535,1923.5,1923.4,34.24865]
[1617261730285,1.9434,1923.5,1923.4,34.24865]
[1617261730686,1.8203,1923.5,1923.4,34.24865]
[1617261731187,0.48187966,1924.4,1923.4,34.24865]
[1617261732186,0.48186146,1924.5,1923.8,30.0]
[1617261732386,3.87067291,1924.9,1923.8,30.0]
[1617261732387,0.4818048,1924.6,1923.8,30.0]
[1617261732587,0.4818048,1924.6,1924.5,86.6257]
[1617261732787,0.48181647,1924.7,1923.8,30.0]
[1617261732987,0.48181647,1924.7,1924.5,2.90695]
[1617261733189,2.90695,1924.9,1924.5,2.90695]
[1617261733190,0.48182746,1924.6,1924.5,2.90695]
[1617261733388,4.98660396,1924.9,1924.5,2.90695]
[1617261734087,4.98660396,1924.9,1924.7,87.0512]
[1617261734487,3.87060396,1924.9,1924.7,87.0512]
[1617261734988,0.96365396,1924.9,1924.8,2.90695]
[1617261735790,3.54754023,1925.0,1924.8,2.90695]
[1617261736190,0.96353553,1924.9,1924.8,2.90695]
[1617261737090,0.96351647,1925.0,1924.8,2.90695]
[1617261737691,0.9635225,1924.9,1924.8,2.90695]
[1617261738795,3.87050261,1925.1,1924.8,2.90695]
[1617261738994,3.87050261,1925.1,1925.0,2.90695]
[1617261740595,2.90695,1925.1,1925.0,2.90695]
[1617261740994,3.87053161,1925.1,1925.0,2.90695]
[1617261741193,2.90695,1925.1,1925.0,2.90695]
[1617261741995,3.87018426,1925.1,1925.0,2.90695]
[1617261742796,2.90695,1925.1,1925.0,2.90695]
[1617261745901,3.38813565,1925.1,1925.0,2.90695]
[1617261746602,2.90695,1925.1,1925.0,2.90695]
[1617261747301,2.90695,1925.1,1925.0,87.05055]
[1617261760921,0.48143771,1925.3,1925.0,117.05055]
[1617261761120,0.48143771,1925.3,1925.2,2.90695]
[1617261761320,0.48143771,1925.3,1925.2,4.03405]
[1617261761521,3.38838461,1925.4,1925.2,4.03405]
[1617261763321,3.38838461,1925.4,1925.2,2.90695]
[1617261766023,0.48143461,1925.4,1925.2,2.90695]
[1617261767123,0.48129126,1925.5,1925.2,2.90695]
[1617261767323,0.48129126,1925.5,1925.4,2.90695]
[1617261769027,0.9653283,1925.5,1925.4,2.90695]
[1617261772830,0.9653283,1925.5,1925.4,83.71795]
[1617261775334,0.96528724,1925.6,1925.4,83.71795]
[1617261776335,0.72367989,1925.5,1925.4,83.71795]
[1617261776536,0.72367989,1925.5,1925.4,84.74545]
[1617261776935,0.72367989,1925.5,1925.4,83.71795]
[1617261777136,1.63730092,1925.5,1925.4,83.71795]
[1617261777538,0.72367989,1925.5,1925.4,83.71795]
[1617261779643,1.63729672,1925.6,1925.4,83.71795]
[1617261780542,0.966902,1925.5,1925.4,83.71795]
[1617261781044,1.88050614,1925.5,1925.4,83.71795]
[1617261781442,0.966902,1925.5,1925.4,83.71795]
[1617261781643,1.88050388,1925.5,1925.4,83.71795]
[1617261782043,0.966902,1925.5,1925.4,83.70795]
[1617261782443,0.966902,1925.5,1925.4,80.811]
[1617261783243,2.12222107,1925.6,1925.4,80.811]
[1617261783643,2.12222107,1925.6,1925.5,2.90695]
[1617261783843,2.12222107,1925.6,1925.5,4.43405]
[1617261786447,2.12222107,1925.6,1925.5,2.90695]
[1617261786847,2.12222107,1925.6,1925.5,4.01565]
[1617261791052,0.91360213,1925.6,1925.5,4.01565]
[1617261794259,3.03644636,1925.6,1925.5,4.01565]
[1617261794960,2.12389251,1925.6,1925.5,4.01565]
[1617261798564,2.12389251,1925.6,1925.5,5.04415]
[1617261800866,2.12389251,1925.6,1925.5,85.26105]
[1617261801070,2.12389251,1925.6,1925.5,84.23255]
[1617261801266,14.12389251,1925.6,1925.5,84.23255]
[1617261801768,14.13173713,1925.6,1925.5,84.23255]
[1617261802571,15.34198919,1925.6,1925.5,84.23255]
[1617261802971,14.13173713,1925.6,1925.5,84.23255]
[1617261803370,16.25491089,1925.6,1925.5,84.23255]
[1617261803772,14.13173713,1925.6,1925.5,4.01565]
[1617261804475,12.91360213,1925.6,1925.5,4.01565]
[1617261804874,14.13158539,1925.6,1925.5,4.01565]
[1617261805274,12.91360213,1925.6,1925.5,4.01565]
[1617261805674,14.13158065,1925.6,1925.5,4.01565]
[1617261806074,12.91360213,1925.6,1925.5,4.01565]
[1617261808079,13.63956675,1925.6,1925.5,4.01565]
[1617261808480,13.63956675,1925.6,1925.5,34.01565]
[1617261810280,12.0,1925.6,1925.5,34.01565]
[1617261812985,11.3013,1925.6,1925.5,34.01565]
[1617261813184,10.7524,1925.6,1925.5,34.01565]
[1617261814192,9.7015,1925.6,1925.5,34.01565]
[1617261816195,8.1923,1925.6,1925.5,34.01565]
[1617261824902,8.1923,1925.6,1925.5,48.53685]
[1617261826404,0.3221,1925.6,1925.5,48.53685]
[1617261834410,0.3221,1925.6,1925.5,17.42815]
[1617261835410,0.62424711,1925.6,1925.5,17.42815]
[1617261836610,0.80556562,1925.6,1925.5,17.42815]
[1617261838013,0.3221,1925.6,1925.5,17.42815]
[1617261840114,0.8055738,1925.6,1925.5,17.42815]
[1617261840620,0.3221,1925.6,1925.5,17.42815]
[1617261842020,1.04763711,1925.6,1925.5,17.42815]
[1617261842820,1.96111525,1925.6,1925.5,17.42815]
[1617261843020,2.20338126,1925.6,1925.5,17.42815]
[1617261843424,2.44539279,1925.6,1925.5,17.42815]
[1617261844722,1.23557814,1925.6,1925.5,17.42815]
[1617261845123,1.23557814,1925.6,1925.5,14.5212]
[1617261846025,4.14252814,1925.6,1925.5,14.5212]
[1617261846626,6.26291968,1925.6,1925.5,14.5212]
[1617261847026,92.20181968,1925.6,1925.5,14.5212]
[1617261847227,91.28834154,1925.6,1925.5,14.5212]
[1617261847431,5.34944154,1925.6,1925.5,14.5212]
[1617261847628,10.22223203,1925.6,1925.5,79.23]
[1617261848228,5.34944154,1925.6,1925.5,79.23]
[1617261849229,5.34944154,1925.6,1925.5,14.5212]
[1617261854242,3.22905,1925.6,1925.5,14.5212]
[1617261855244,89.62552835,1925.6,1925.5,14.5212]
[1617261855843,95.71684526,1925.6,1925.5,14.5212]
[1617261856543,92.68646691,1925.6,1925.5,14.5212]
[1617261857345,94.80895974,1925.6,1925.5,14.5212]
[1617261857645,95.71728335,1925.6,1925.5,14.5212]
[1617261859550,92.68646691,1925.6,1925.5,14.5212]
[1617261859950,98.92809784,1925.6,1925.5,14.5212]
[1617261860451,94.68646691,1925.6,1925.5,14.5212]
[1617261861251,98.92838829,1925.6,1925.5,14.5212]
[1617261861753,96.92838829,1925.6,1925.5,14.5212]
[1617261861950,98.92838829,1925.6,1925.5,14.5212]
[1617261862152,96.92838829,1925.6,1925.5,14.5212]
[1617261865263,98.92838829,1925.6,1925.5,14.5212]
[1617261865461,96.92838829,1925.6,1925.5,14.5212]
[1617261865664,98.92838829,1925.6,1925.5,14.5212]
[1617261865861,96.92838829,1925.6,1925.5,14.5212]
[1617261866462,92.68646691,1925.6,1925.5,14.5212]
[1617261868062,94.68646691,1925.6,1925.5,14.5212]
[1617261868362,92.68646691,1925.6,1925.5,14.5212]
[1617261868762,91.46820353,1925.6,1925.5,14.5212]
[1617261869063,95.71055737,1925.6,1925.5,14.5212]
[1617261870465,97.71055737,1925.6,1925.5,14.5212]
[1617261871066,14.34445737,1925.6,1925.5,14.5212]
[1617261871266,12.34445737,1925.6,1925.5,14.5212]
[1617261871467,7.47140384,1925.6,1925.5,14.5212]
[1617261871870,9.60407748,1925.6,1925.5,14.5212]
[1617261872268,8.38540683,1925.6,1925.5,14.5212]
[1617261873069,83.85120683,1925.6,1925.5,14.5212]
[1617261873568,126.52157861,1925.6,1925.5,14.5212]
[1617261873769,128.52157861,1925.6,1925.5,14.5212]
[1617261874269,124.27922477,1925.6,1925.5,14.5212]
[1617261875271,122.27922477,1925.6,1925.5,14.5212]
[1617261875670,47.85892477,1925.6,1925.5,14.5212]
[1617261876271,47.83708893,1925.6,1925.5,14.5212]
[1617261876672,44.38567138,1925.6,1925.5,14.5212]
[1617261877372,43.28187138,1925.6,1925.5,14.5212]
[1617261878972,41.14920471,1925.6,1925.5,14.5212]
[1617261879373,54.3896299,1925.6,1925.5,14.5212]
[1617261880373,54.3896299,1925.6,1925.5,13.5013]
[1617261880573,53.3441299,1925.6,1925.5,13.5013]
[1617261883678,46.6812173,1925.6,1925.5,13.5013]
[1617261885478,52.1245262,1925.6,1925.5,13.5013]
[1617261886578,46.6812173,1925.6,1925.5,13.5013]
[1617261889683,52.12520533,1925.6,1925.5,13.5013]
[1617261889882,53.22520533,1925.6,1925.5,13.5013]
[1617261890083,53.22520533,1925.6,1925.5,12.4913]
[1617261893885,53.22520533,1925.6,1925.5,10.4213]
[1617261894284,46.64769274,1925.6,1925.5,10.4213]
[1617261896791,41.20370471,1925.6,1925.5,10.4213]
[1617261896991,45.43334339,1925.6,1925.5,10.4213]
[1617261897991,41.20370471,1925.6,1925.5,10.4213]
[1617261898193,60.1123,1925.5,1924.7,15.0229]
[1617261898392,32.0,1925.4,1924.7,15.0229]
[1617261898792,0.96608698,1924.8,1924.7,15.0229]
[1617261899491,3.87303698,1924.8,1924.7,15.0229]
[1617261899691,4.78739147,1924.8,1924.7,15.0229]
[1617261901693,3.82130449,1924.8,1924.7,15.0229]
[1617261902894,33.82130449,1924.8,1923.8,68.05345]
[1617261903094,33.82130449,1924.8,1923.8,2.90695]
[1617261903297,63.7189,1924.1,1923.8,2.90695]
[1617261903495,3.20892537,1923.9,1923.6,2.90695]
[1617261903896,0.06039587,1923.7,1923.6,2.90695]
[1617261905498,2.96734587,1923.7,1923.6,2.90695]
[1617261906498,2.90695,1923.7,1923.6,2.90695]
[1617261906897,2.93711128,1923.7,1923.6,2.90695]
[1617261907498,2.90695,1923.7,1923.6,2.90695]
[1617261907697,2.89695,1923.7,1923.6,2.90695]
[1617261907898,2.95731923,1923.7,1923.6,2.90695]
[1617261912004,2.9271352,1923.7,1923.6,2.90695]
[1617261912203,0.0301852,1923.7,1923.6,2.90695]
[1617261912404,0.03018484,1923.8,1923.6,2.90695]
[1617261912804,0.03018256,1923.9,1923.6,2.90695]
[1617261913203,0.03018189,1924.0,1923.6,2.90695]
[1617261913606,0.03018189,1924.0,1923.9,2.90695]
[1617261913805,0.03018189,1924.0,1923.9,4.50405]
[1617261914403,0.02018189,1924.0,1923.9,4.50405]
[1617261915304,2.90695,1924.1,1923.9,4.50405]
[1617261915504,0.06035883,1924.2,1924.1,69.8397]
[1617261915906,0.21125612,1924.2,1924.1,69.8397]
[1617261916308,0.06035883,1924.2,1924.1,69.8397]
[1617261917308,0.06035206,1924.3,1924.1,69.8397]
[1617261917507,0.06035206,1924.3,1924.2,2.90695]
[1617261918309,2.64437507,1924.4,1924.3,68.2211]
[1617261918509,2.64437507,1924.4,1924.3,69.8285]
[1617261918912,2.564,1924.4,1924.3,69.8285]